Cogmind - Beta 15 @@@ ROGUE MODE // 2025.07.29 @ 14:03:29 Player: SpaceExplorer337 Result: Destroyed by H-66 Slayer with Gauss Rifle Performance ------------- Evolutions (5) 2500 Regions Visited (4) 800 Robots Destroyed (31) 155 Value Destroyed (1085) 1085 Prototype IDs (2) 40 Alien Tech Used (0) 0 Bonus (0) 0 TOTAL SCORE: 4580 Bonus ------- None Cogmind --------- Core Integrity 0/1000 Matter 221/300 Energy 5/150 System Corruption 12% Temperature Cool (2) Movement Hovering (70) Location -5/Factory Parts ------- > --- POWER (2) -------- Micro Nuclear Core > --- PROPULSION (4) --- Gyrokinetic Inverter > --- UTILITY (8) ------ Gravity Neutralizer Improved Signal Interpreter Advanced Shield Generator Hacking Suite Makeshift Hacking Suite > --- WEAPON (3) ------- (None) > --- INVENTORY (5) ---- Neutrino Core Improved Kinecellerator Gauss Rifle Peak State ------------ > --- POWER ------------ Reinforced Fission Core Micro Fission Core > --- PROPULSION ------- Antigrav System Gyrokinetic Inverter Gyrokinetic Inverter Gyrokinetic Inverter > --- UTILITY ---------- Advanced Heat Sink Medium Storage Unit Gravity Neutralizer Improved Sensor Array Improved Signal Interpreter Advanced Targeting Computer Hacking Suite Makeshift Hacking Suite > --- WEAPON ----------- Cooled Plasma Rifle Heavy Phase Cannon Gauss Cannon > --- INVENTORY -------- Micro Nuclear Core Neutrino Core Micro Fission Core Improved Signal Interpreter Advanced Targeting Computer Improved Kinecellerator Force Booster Advanced Shield Generator Assault Cannon Rocket Launcher [Rating: 85] Favorites ----------- Power Ion Engine Engine Ion Engine Power Core Reinforced Fission Core Propulsion Gyrokinetic Inverter Leg Aluminum Leg Hover Unit Gyrokinetic Inverter Utility Hacking Suite Device Gravity Neutralizer Storage Medium Storage Unit Processor Improved Signal Interpreter Hackware Hacking Suite Weapon Heavy Flail Energy Gun Small Laser Energy Cannon Heavy Phase Cannon Ballistic Gun Light Assault Rifle Ballistic Cannon Magnetic Acceleration Cannon Launcher Rocket Launcher Impact Weapon Heavy Flail Build | -11 -10 -10 -7 -5 ------- Run | Yrd Mat Sub Scr Fac Slots Evolved 10 | . . . . 10 Power 1 | . . . . 1 Propulsion 2 | . . . . 2 Utility 6 | . . . . 6 Weapon 1 | . . . . 1 Parts Attached 45 | 7 2 . 2 34 Power 8 | 1 . . . 7 Engine 3 | 1 . . . 2 Core 5 | . . . . 5 Reactor . | . . . . . Propulsion 10 | 2 . . . 8 Treads . | . . . . . Leg 4 | 2 . . . 2 Wheel . | . . . . . Hover 6 | . . . . 6 Flight . | . . . . . Utility 15 | 1 2 . . 12 Device 8 | . . . . 8 Storage 2 | 1 1 . . . Processor 3 | . . . . 3 Hackware 2 | . 1 . . 1 Protection . | . . . . . Artifact . | . . . . . Weapon 12 | 3 . . 2 7 Energy Gun 4 | 2 . . 1 1 Energy Cannon 1 | . . . . 1 Ballistic Gun 1 | 1 . . . . Ballistic Cannon 3 | . . . 1 2 Launcher 1 | . . . . 1 Special Weapon . | . . . . . Impact Weapon 2 | . . . . 2 Slashing Weapon . | . . . . . Piercing Weapon . | . . . . . Special Melee Weapon . | . . . . . Unidentified Prototypes 2 | . . . . 2 Parts Lost 23 | . . . . 23 Power 5 | . . . . 5 Propulsion 4 | . . . . 4 Utility 5 | . . . . 5 Weapon 9 | . . . . 9 Highest Loss Streak 8 | . . . . 8 To Critical Strikes . | . . . . . Average Backups 7 | 2 7 9 9 6 Power 2 | 2 4 5 3 1 Propulsion . | . 1 2 2 . Utility 2 | . 1 1 1 3 Weapon 1 | . 1 1 2 1 Tool/Special . | . . . . . Unused Backups 6 | . . . 2 4 Power 3 | . . . 2 1 Propulsion . | . . . . . Utility 2 | . . . . 2 Weapon 1 | . . . . 1 Tool/Special . | . . . . . Average Slot Usage (%) 90 | . 92 100 99 84 Engine 6 | . 14 14 14 2 Core 4 | . . . . 7 Leg 12 | . 28 28 28 2 Hover 10 | . . . . 16 Device 9 | . . . . 14 Storage 8 | . 14 14 14 4 Processor 4 | . . . . 6 Hackware 11 | . 6 14 14 10 Energy Gun 10 | . 28 28 25 1 Energy Cannon 1 | . . . . 1 Ballistic Cannon 2 | . . . 2 3 Impact Weapon 3 | . . . . 6 Peak Build Rating 85 | 6 10 10 16 85 Average Rating 39 | 5 8 10 11 60 On Entrance 8 | . 6 10 10 16 Naked Turns . | . . . . . Heaviest Build 60 | 13 18 18 26 60 Greatest Support 56 | 20 20 20 20 56 Greatest Overweight (x) 2 | . . . 1 2 Average Overweight (x) . | . . . . . Largest Inventory Capacity 10 | 8 10 10 10 10 Average Capacity 9 | 7 9 10 10 9 Most Carried 10 | 5 9 9 10 10 Average Carried 7 | 3 7 9 9 6 Final Capacity 10 | 8 10 10 10 5 Final Carried 10 | 5 9 9 10 3 Class Distribution -------------------- 41% | Mutant 31% | Hacker-Gladiator 16% | Hacker-Skirmisher 6% | Hacker-Mutant 4% | Hacker-Gunner Dominant Class ---------------- Mutant | -10/Materials Mutant | -10/Subcaves Mutant | -7/Scraptown Hacker-Gladiator | -5/Factory Resources | -11 -10 -10 -7 -5 ----------- Run | Yrd Mat Sub Scr Fac Matter Collected 957 | 270 20 . . 667 Remotely . | . . . . . Salvage Created 1167 | 282 55 60 . 770 Parts 53 | 22 4 4 . 23 Haulers Intercepted . | . . . . . Recyclers Shooed 1 | . 1 . . . Parts Field Recycled . | . . . . . Retrieved Matter . | . . . . . Parts Self-Destructed 12 | . . 12 . . Prevented . | . . . . . Kills | -11 -10 -10 -7 -5 ------- Run | Yrd Mat Sub Scr Fac Combat Hostiles Destroyed 19 | . 1 1 . 17 Melee 1 | . . . . 1 Guns 6 | . 1 1 . 4 Cannons 10 | . . . . 10 Classes Destroyed 10 | 3 2 . . 5 Worker 1 | 1 . . . . Tunneler 9 | 9 . . . . Recycler 1 | 1 . . . . Operator 1 | . 1 . . . Swarmer 4 | . . . . 4 Grunt 8 | . 1 1 . 6 Brawler 1 | . . . . 1 Sentry 1 | . . . . 1 Hunter 1 | . . . . 1 Programmer 4 | . . . . 4 Best Kill Streak 6 | 6 1 1 . 3 Combat Bots Only 3 | . 1 1 . 3 Max Kills in Single Turn 2 | 1 1 1 . 2 Gunslinging . | . . . . . Exploded . | . . . . . Melee 1 | . . . . 1 Uniques/NPCs Destroyed . | . . . . . Combat | -11 -10 -10 -7 -5 -------- Run | Yrd Mat Sub Scr Fac Hostile Shots Fired 282 | . 12 4 . 266 Missed 76 | . 3 1 . 72 Hits 206 | . 9 3 . 194 Projectile 206 | . 9 3 . 194 AOE 2 | . . . . 2 Critical Strikes 9 | . 1 . . 8 Part Disruptions 1 | . . . . 1 Damage Taken 3469 | . 119 34 . 3316 Core 1047 | . 6 34 . 1007 Absorbed by Shields 96 | . . . . 96 Core Remaining (%) 92 | 100 . . 84 . Volleys Fired 94 | 28 8 1 . 57 Largest 3 | 2 2 2 . 3 Hottest 190 | 90 90 90 . 190 Shots Fired 196 | 56 16 2 . 122 Gun 110 | 56 16 2 . 36 Cannon 84 | . . . . 84 Launcher 2 | . . . . 2 Special . | . . . . . Kinetic 43 | . . . . 43 Thermal 151 | 56 16 2 . 77 Explosive 2 | . . . . 2 Electromagnetic . | . . . . . Robot Hit Streak 16 | 8 7 2 . 16 Robot Miss Streak 8 | 4 3 . . 8 Penetration Max . | . . . . . Secondary Targets 1 | . . 1 . . Max Gunslinging Chain 1 | . . 1 . . Shots Hit Robots 133 | 35 7 2 . 89 Core Hits 43 | 12 4 1 . 26 Critical Kills 1 | . . . . 1 Critical Parts Destroyed 1 | . . . . 1 Critical Strikes 13 | 2 . . . 11 Burn 6 | 2 . . . 4 Meltdown 1 | . . . . 1 Blast 5 | . . . . 5 Smash 1 | . . . . 1 Melee Attacks 24 | . . . . 24 Impact 24 | . . . . 24 Slashing . | . . . . . Piercing . | . . . . . Sneak Attacks . | . . . . . Combat Hostiles . | . . . . . Follow-up Attacks 3 | . . . . 3 Damage Inflicted 3549 | 432 82 25 . 3010 Guns 1092 | 432 82 25 . 553 Cannons 1617 | . . . . 1617 Explosions 51 | . . . . 51 Melee 789 | . . . . 789 Ramming . | . . . . . Kinetic 754 | . . . . 754 Thermal 1955 | 432 82 25 . 1416 Explosive 51 | . . . . 51 Electromagnetic . | . . . . . Impact 789 | . . . . 789 Slashing . | . . . . . Piercing . | . . . . . Highest Corruption 12 | . . . . 12 Average Corruption 7 | . . . . 7 Corruption Purged . | . . . . . Corruption Blocked . | . . . . . Effects 2 | . . . . 2 Message Errors 1 | . . . . 1 Matter Fused 1 | . . . . 1 Overload Shots 2 | . . . . 2 Overflow Damage 186 | . . . . 186 Projectiles 93 | . . . . 93 Explosions 16 | . . . . 16 Melee 77 | . . . . 77 Knockbacks 14 | . . . . 14 Impact 6 | . . . . 6 Kinetic 8 | . . . . 8 Secondary . | . . . . . Self-Inflicted Damage 38 | . . . . 38 Shots 1 | . . . . 1 Rammed . | . . . . . Targets Rammed . | . . . . . Kicked . | . . . . . Crushed . | . . . . . Highest Temperature 579 | 162 181 . . 579 Average Temperature 122 | 64 63 . . 144 Received Heat Transfer 561 | . 87 21 . 453 Effects 18 | . . . . 18 Shutdowns 6 | . . . . 6 Energy Bleed 3 | . . . . 3 Interference 4 | . . . . 4 Matter Decay 4 | . . . . 4 Short Circuit 1 | . . . . 1 Siege Activations . | . . . . . Martial Activations . | . . . . . Shielding Activations . | . . . . . Robots Disrupted . | . . . . . Combat Hostiles . | . . . . . Robots Corrupted 1 | . . . . 1 Combat Hostiles 1 | . . . . 1 Parts Fried . | . . . . . Impact Corruptions 4 | . . . . 4 Robots Melted 1 | . . . . 1 Combat Hostiles 1 | . . . . 1 Parts Melted 8 | 1 . . . 7 Heat Transferred 3915 | 1276 211 62 . 2366 Parts Sabotaged . | . . . . . Parts Stolen . | . . . . . Parts Stripped . | . . . . . Power Chain Reactions . | . . . . . Alert | -11 -10 -10 -7 -5 ------- Run | Yrd Mat Sub Scr Fac Maximum Alert Level . | . . . . . Low Security (%) 100 | 100 100 . . 100 Level 1 . | . . . . . Level 2 . | . . . . . Level 3 . | . . . . . Level 4 . | . . . . . Level 5 . | . . . . . High Security . | . . . . . Max Security . | . . . . . Peak Influence 161 | 15 20 . . 161 Initial . | . . . . . Average 30 | 1 3 . . 36 Influence Increases 700 | 55 25 30 . 590 Destroy 0b10 Robot/C 380 | . 20 20 . 340 Destroy 0b10 Robot/NC 60 | 55 5 . . . Destroy Leader 70 | . . 10 . 60 Successful Hack 8 | . . . . 8 Disable Machine 60 | . . . . 60 Destroy Structure 62 | . . . . 62 Lose Combat Pursuer 60 | . . . . 60 Influence Decreases 700 | 55 25 30 . 590 Time Decay 558 | 55 25 30 . 448 Lost Part 142 | . . . . 142 Squads Dispatched 10 | . 2 . . 8 Investigation 2 | . 1 . . 1 Extermination 5 | . . . . 5 Reinforcement 3 | . 1 . . 2 Assault . | . . . . . Garrison . | . . . . . Intercept . | . . . . . Searches Triggered . | . . . . . Construction Impeded 1 | . . . . 1 Haulers Reinforced . | . . . . . Active Scanning Responses . | . . . . . Cargo Convoy Interrupts . | . . . . . Stealth | -11 -10 -10 -7 -5 --------- Run | Yrd Mat Sub Scr Fac Distress Signals . | . . . . . Communications Jammed . | . . . . . Distress Signals . | . . . . . Times Spotted 37 | . 7 2 . 28 Peak Tracking Total 7 | . 3 2 . 7 Tactical Retreats 4 | . . . . 4 Traps | -11 -10 -10 -7 -5 ------- Run | Yrd Mat Sub Scr Fac Traps Triggered 3 | . . . . 3 Indirectly . | . . . . . Trap Hack Attempts . | . . . . . Triggered . | . . . . . Disarmed . | . . . . . Reprogrammed . | . . . . . Reused . | . . . . . Traps Extracted . | . . . . . Installed . | . . . . . Triggered . | . . . . . Machines | -11 -10 -10 -7 -5 ---------- Run | Yrd Mat Sub Scr Fac Machines Disabled 4 | . . . . 4 Max in Single Turn 1 | . . . . 1 Machines Repaired . | . . . . . Machines Dismantled . | . . . . . Machines Sabotaged . | . . . . . Overloaded Fab Kills . | . . . . . Hacking | -11 -10 -10 -7 -5 --------- Run | Yrd Mat Sub Scr Fac Machines Accessed 6 | . 1 . 3 2 Terminals 3 | . 1 . . 2 Fabricators . | . . . . . Repair Stations . | . . . . . Recycling Units . | . . . . . Scanalyzers . | . . . . . Garrison Access . | . . . . . Total Hacks 44 | . 7 . 22 15 Successful 36 | . 5 . 22 9 Failed 6 | . 2 . . 4 Catastrophic 2 | . 1 . . 1 Database Lockouts 2 | . . . . 2 Manual . | . . . . . Terminals 22 | . 7 . . 15 Fabricators . | . . . . . Repair Stations . | . . . . . Recycling Units . | . . . . . Scanalyzers . | . . . . . Garrison Access . | . . . . . Terminal Hacks 36 | . 5 . 22 9 Record 32 | . 1 . 22 9 Emergency Access Points 1 | . 1 . . . Dispatch Records 1 | . 1 . . . Maintenance Status 1 | . 1 . . . Investigation Status 1 | . 1 . . . Fabricator Hacks . | . . . . . Repair Station Hacks . | . . . . . Recycling Unit Hacks . | . . . . . Scanalyzer . | . . . . . Garrison Access Hacks . | . . . . . Unauthorized Hacks . | . . . . . Terminals . | . . . . . Fabricators . | . . . . . Repair Stations . | . . . . . Recycling Units . | . . . . . Scanalyzers . | . . . . . Garrison Access . | . . . . . Data Cores Recovered . | . . . . . Used . | . . . . . Hacking Detections 3 | . 1 . . 2 Full Trace Events 2 | . 1 . . 1 Feedback Events . | . . . . . Feedback Blocked . | . . . . . Robot Schematics Acquired . | . . . . . Robots Built . | . . . . . Authchips . | . . . . . Time . | . . . . . Total Robot Build Rating . | . . . . . Part Schematics Acquired . | . . . . . Parts Built . | . . . . . Authchips . | . . . . . Time . | . . . . . Total Part Build Rating . | . . . . . Parts Repaired . | . . . . . Time . | . . . . . Parts Recycled . | . . . . . Recycled Matter . | . . . . . Retrieved Matter . | . . . . . Retrieved Components . | . . . . . Parts Scanalyzed . | . . . . . Part Schematics Acquired . | . . . . . Parts Damaged . | . . . . . Bothacking | -11 -10 -10 -7 -5 ------------ Run | Yrd Mat Sub Scr Fac Used RIF Installer . | . . . . . Robots Hacked . | . . . . . Non-combat . | . . . . . Combat . | . . . . . Robot Hacks Applied . | . . . . . Relay Couplers Released . | . . . . . Fabnet Peak Effective % . | . . . . . Robots Rewired . | . . . . . Allies Hacked . | . . . . . Hacks Repelled . | . . . . . Allies | -11 -10 -10 -7 -5 -------- Run | Yrd Mat Sub Scr Fac Total Allies . | . . . . . Largest Group . | . . . . . Highest-Rated Group . | . . . . . Highest-Rated Ally . | . . . . . Total Orders . | . . . . . Ally Attacks . | . . . . . Total Damage . | . . . . . Kills . | . . . . . Allies Corrupted . | . . . . . Allies Melted . | . . . . . Intel | -11 -10 -10 -7 -5 ------- Run | Yrd Mat Sub Scr Fac Active Infowar (turns) 2714 | . . . . 2714 Sensors 2714 | . . . . 2714 Robot Analysis Total . | . . . . . Derelict Logs Recovered . | . . . . . Drone Launches . | . . . . . Drone Recoveries . | . . . . . Exploration | -11 -10 -10 -7 -5 ------------- Run | Yrd Mat Sub Scr Fac Turns Passed 5342 | 425 158 293 1344 3122 Spaces Moved 2297 | 152 90 224 1014 817 Core 8 | 7 . . . 1 Treads . | . . . . . Legs 1751 | 145 90 224 1014 278 Wheels . | . . . . . Hover 538 | . . . . 538 Flight . | . . . . . Fastest Speed 50 | 50 120 120 120 55 Average Speed 116 | 116 120 120 129 97 Slowest Speed 190 | 120 120 120 190 190 Overloaded Moves . | . . . . . Propulsion Burnouts . | . . . . . Robots Hopped . | . . . . . Potential Cave-ins . | . . . . . Cave-ins Triggered . | . . . . . Exploration Rate (%) 24 | 7 21 18 57 17 Regions Visited 4 Branch Regions 2 Pre-discovered Areas . | . . . . . Known Exits Taken . | . . . . . Unknown Exits Taken 4 | 1 1 1 1 . Scrap Searched 3 | . . . 3 . Spaces Dug . | . . . . . Terrain Destroyed 32 | . . . . 32 Melee . | . . . . . Projectile 19 | . . . . 19 AOE 13 | . . . . 13 Terrain Rammed . | . . . . . Walls Destroyed . | . . . . . Machines Disabled . | . . . . . Actions | -11 -10 -10 -7 -5 --------- Run | Yrd Mat Sub Scr Fac Total 4762 | 343 124 246 1044 3005 Wait 2230 | 146 19 22 20 2023 Move 2293 | 151 89 223 1013 817 Hop . | . . . . . Pick Up 51 | 11 5 . 4 31 Fast Attach 7 | . . . 2 5 Attach 41 | 6 2 . . 33 Detach 1 | . 1 . . . Swap 10 | 1 . . . 9 Drop 14 | . . . 5 9 Fire 94 | 28 8 1 . 57 Melee 21 | . . . . 21 Ram . | . . . . . Kick . | . . . . . Crush . | . . . . . Escape Stasis . | . . . . . Rewire . | . . . . . Trap . | . . . . . Miscellaneous . | . . . . . Route ------- -11/Scrapyard -10/Materials (discovered 2 exits: [*Mat] / [*Sub]) -10/Subcaves -7/Scraptown -5/Factory History --------- Turn | Location | Event 19 | -11/Scrapyard | Discovered new exit (range 15) 426 | -11/Scrapyard | Entered Materials 427 | -10/Materials | Build established: Mutant 427 | -10/Materials | Met a group of wandering Federalists 553 | -10/Materials | Discovered new exit (range 16) 558 | -10/Materials | Discovered new exit (range 8) 584 | -10/Materials | Entered Subcaves 585 | -10/Subcaves | Continued accompanying wandering Federalists (4) 585 | -10/Subcaves | Approached by a straggling Scientist 863 | -10/Subcaves | Wandering Federalist uncovered a shortcut to Scraptown 877 | -10/Subcaves | Entered Scraptown 1097 | -7/Scraptown | Visited UFD Registry 1161 | -7/Scraptown | Visited Cave Peace 1200 | -7/Scraptown | Visited Cyclists 1326 | -7/Scraptown | Heard Great Nut preacher, LISTEN AND RECITE! 1702 | -7/Scraptown | Discovered new exit (range 7) 1831 | -7/Scraptown | Visited Comm Corps 1901 | -7/Scraptown | Visited Junk Repository 1940 | -7/Scraptown | Visited Junk Repository 2050 | -7/Scraptown | Visited Symbiants 2221 | -7/Scraptown | Entered Factory 2221 | -5/Factory | Evolved 10 slots: Power x1, Propulsion x2, Utility x6, Weapon x1 2324 | -5/Factory | Central database locked down 2324 | -5/Factory | Central database locked down 2731 | -5/Factory | Build established: Hacker-Skirmisher 2885 | -5/Factory | Lost 5 parts (2p1n2w) 3215 | -5/Factory | Spotted B-75 Beast 3563 | -5/Factory | Lost 3 parts (3w) 3651 | -5/Factory | Lost 5 parts (1p1n1u2w) 3896 | -5/Factory | Build established: Hacker-Gladiator 5264 | -5/Factory | Core integrity fell below 50% 5301 | -5/Factory | Core integrity fell below 20% 5310 | -5/Factory | Lost 8 parts (2p2n3u1w) 5318 | -5/Factory | System corruption reached 10% 5343 | -5/Factory | Destroyed by H-66 Slayer with Gauss Rifle Last Messages --------------- past its destination after deploying Project [Seraph] that year. 05286_ ALERT: Suspicious activity at Terminal F019. Dispatching Investigation squad. 05290_ System corrupted: Matter fused (-5). 05292_ ALERT: Suspicious intruders detected, dispatching Cutter reinforcements to area. 05294_ Penetrated by Slug. 05298_ Neutrino Reactor explodes. 05298_ Door malfunctions. 05298_ K-01 Serf destroyed. 05298_ P-70 Sage resets P-70 Sage, system corruption cleaned. 05299_ Acquired 30 matter. 05328_ Slug penetrates Wall. 05333_ Construction Platform disabled. 05335_ EOYF ERXYVOUXJYDGK<%DNB#FJP< Map ----- +----------------------------------------------------+ | #?????????????????????????????????????????????? | | #?????????????????????????????????????????????? | | ##?????????????????????????????????????????????? | | #??????????????????????????????????????????????? | | #??????????????????????????????????????????????? | | #??????????????????????????????????????????????? | | ##?????????????????????????????????????????????? | | #?????????????????????????????????????????????? | | #######???????????????????????????????????????? | | T ????????????????????????????????? | | #######???????????????????????????????????????? | | #?????????? ????????????????????????????????? | | /######??????? #???????????????????????????????? | | #??????? #???????????????????????????????? | | |#??????# #???????????????????????????????? | | " ######## #???????????????????????????????? | | " # #???????????????????????????????? | | " " " # #???????????????????????????????? | | "R" # #???????????????????????????????? | | """ # #???????????????????????????????? | | # ####????????????????????????????? | | ####### ?????????????????????????????? | | #????# #???????????????????????????????? | | #????# #???????????????????????????????? | | ###### ################?????????????????? | | + # @ #?????????????????? | | ######### p/ h p p #?????????????????? | | ##???????# # h""""""" #?????????????????? | | ?????????# # """"""" #?????????????????? | | ?????????#+###### """"""" #?????????????????? | | ???????? ???# """ ""p #?????????????????? | | ?????? ?# #?????????????????? | | ?????# ## #?????????????????? | | ?????# #################?????????????????? | | ?????###########?????????????????????????????????? | | ?????????????????????????????????????????????????? | | ?????????????????????????????????????????????????? | | ?????????????????????????????????????????????????? | | ?????????????????????????????????????????????????? | | ?????????????????????????????????????????????????? | | ?????????????????????????????????????????????????? | | ?????????????????????????????????????????????????? | | ?????????????????????????????????????????????????? | | ?????????????????????????????????????????????????? | | ?????????????????????????????????????????????????? | | ?????????????????????????????????????????????????? | | ?????????????????????????????????????????????????? | | ?????????????????????????????????????????????????? | | ?????????????????????????????????????????????????? | | ?????????????????????????????????????????????????? | +----------------------------------------------------+ Best States ------------- Heat Dissipation 59 Coolant Potential 80 Energy Generation 29 Energy Capacity 460 Matter Stores 300 Matter Capacity 300 Sight Range 16 Robot Scan Range 15 Terrain Scan Density 10 Additional Mass Support 12 Evasion (%) 55 Targeting Accuracy 8 Force Boost 20 Offensive Hacking 21 Item Schematics ----------------- None Robot Schematics ------------------ None Fabricated ------------ Nothing Repaired ---------- Nothing Alien Tech Used ----------------- None Achievements -------------- None Challenges ------------ None Game ------ Seed NetworkSpliceFlail Manual? 0 Play Time 00:51:27 Cumulative 21.8 hours Start 2025.07.28 @ 19:39:59 End 2025.07.29 @ 14:03:29 Sessions 7 Manual Loads 0 Difficulty Rogue Special Mode None Game No. 32 Rogue 32 Adventurer 0 Explorer 0 Win Type - Total 0 Types 0/0/0/0/0/0/0/0/0/0 Lore% 18 Gallery% 20 Achievement% 17 Wizard Run 0 Options --------- Layout 1 ASCII 0 Keyboard 0 Movement Mouse Keybinds 0 Fullscreen 1 Font 24/Smallcaps Map View 50x40 Zoom Use 0% Tactical HUD 1 Map Filters NONE Filters NONE Steam 1 RUN: b05f7184-c4c1-4c79-8182-e008ec79c498